bitfinex/quotes_SOLUSD_20250621
["timestamp","ask_amount","ask_price","bid_price","bid_amount"]
[1750478917778,34.97528831,140.68,140.67,13.31556095]
[1750478919004,29.66,140.68,140.67,13.31556095]
[1750478919195,34.97528831,140.68,140.67,13.31556095]
[1750478920207,29.66,140.68,140.67,13.31556095]
[1750478920796,34.97505368,140.68,140.67,13.31556095]
[1750478921109,34.23505368,140.68,140.67,13.31556095]
[1750478921410,28.92,140.68,140.67,13.31556095]
[1750478922193,34.23526184,140.68,140.67,13.31556095]
[1750478923609,34.97526184,140.68,140.67,13.31556095]
[1750478925618,29.66,140.68,140.67,13.31556095]
[1750478925910,28.92,140.68,140.67,13.31556095]
[1750478926108,28.9,140.7,140.67,31.14765165]
[1750478926313,29.61,140.7,140.69,6.20672467]
[1750478926513,28.9,140.7,140.69,6.20672467]
[1750478927715,28.9,140.7,140.69,13.31455038]
[1750478929320,0.71,140.71,140.69,13.31455038]
[1750478929510,29.61,140.71,140.7,6.20672467]
[1750478929704,34.92614301,140.71,140.7,6.20672467]
[1750478931120,34.92614301,140.71,140.7,13.31404521]
[1750478931822,34.92645072,140.71,140.7,13.31404521]
[1750478933218,6.02645072,140.71,140.7,13.31404521]
[1750478933414,34.92645072,140.71,140.7,13.31404521]
[1750478934921,6.02645072,140.71,140.7,13.31404521]
[1750478935112,34.92645072,140.71,140.7,13.31404521]
[1750478938021,34.21645072,140.71,140.7,13.31404521]
[1750478938227,34.21645072,140.71,140.7,38.14094389]
[1750478938421,5.31645072,140.71,140.7,38.14094389]
[1750478940403,5.3192806,140.71,140.7,38.14094389]
[1750478942030,9.44081717,140.72,140.7,38.20094389]
[1750478942216,9.44081717,140.72,140.71,6.20672467]
[1750478942715,9.44081717,140.72,140.71,13.3135401]
[1750478947308,28.88,140.74,140.71,31.14057869]
[1750478947531,28.88,140.74,140.73,6.20672467]
[1750478948020,0.71,140.75,140.73,6.20672467]
[1750478948225,29.59,140.75,140.73,6.20672467]
[1750478949641,29.59,140.75,140.74,7.10530055]
[1750478951119,29.59,140.75,140.74,13.31202522]
[1750478951915,0.71,140.75,140.74,13.31202522]
[1750478952215,29.59,140.75,140.74,13.31202522]
[1750478954136,29.59,140.75,140.74,7.10530055]
[1750478954340,29.59,140.75,140.74,13.31202522]
[1750478955723,34.90143403,140.75,140.74,13.31202522]
[1750478956545,34.90048707,140.75,140.74,13.31202522]
[1750478957049,34.90049857,140.75,140.74,13.31202522]
[1750478960145,34.90053744,140.75,140.74,13.31202522]
[1750478962671,53.5501863,140.75,140.74,13.31202522]
[1750478963150,53.55142102,140.75,140.74,13.31202522]
[1750478965749,56.20811851,140.75,140.74,13.31202522]
[1750478965936,56.20976987,140.75,140.74,13.31202522]
[1750478966136,53.55306287,140.75,140.74,13.31202522]
[1750478967826,56.21035802,140.75,140.74,7.10530055]
[1750478968034,53.55306287,140.75,140.74,13.31202522]
[1750478968460,56.21149839,140.75,140.74,13.31202522]
[1750478968829,53.5565199,140.75,140.74,13.31202522]
[1750478969035,56.21495542,140.75,140.74,13.31202522]
[1750478972759,53.5565199,140.75,140.74,13.31202522]
[1750478972965,56.21685993,140.75,140.74,13.31202522]
[1750478973261,56.21685993,140.75,140.71,24.87385402]
[1750478973562,48.21964886,140.75,140.74,6.20672467]
[1750478973728,56.20126458,140.75,140.74,6.20672467]
[1750478974671,56.201414,140.75,140.74,6.20672467]
[1750478975349,56.201414,140.75,140.74,13.31202522]
[1750478979145,56.2020955,140.75,140.74,13.31202522]
[1750478980478,56.20486115,140.75,140.74,13.31202522]
[1750478980779,7.98521229,140.75,140.74,13.31202522]
[1750478980961,28.86,140.75,140.74,31.0752766]
[1750478981163,28.86,140.76,140.74,31.0752766]
[1750478981344,28.86,140.76,140.75,6.20672467]
[1750478981551,29.55,140.77,140.75,6.20672467]
[1750478981750,29.55,140.77,140.76,6.20672467]
[1750478982049,29.55,140.77,140.76,13.31101566]
[1750478982677,0.69,140.77,140.76,13.31101566]
[1750478982976,29.55,140.77,140.76,13.31101566]
[1750478983180,0.69,140.77,140.76,13.31101566]
[1750478983481,29.55,140.77,140.76,13.31101566]
[1750478983973,0.69,140.77,140.76,13.31101566]
[1750478984170,29.55,140.77,140.76,13.31101566]
[1750478984377,34.87594503,140.77,140.76,13.31101566]
[1750478984551,37.53891754,140.77,140.76,13.31101566]
[1750478987165,32.21297251,140.77,140.76,13.31101566]
[1750478987372,37.53688296,140.77,140.76,13.31101566]
[1750478988059,34.87458864,140.77,140.76,13.31101566]
[1750478988575,5.32458864,140.77,140.76,13.31101566]
[1750478988876,34.18458864,140.77,140.76,13.31101566]
[1750478989468,34.16458864,140.77,140.76,13.31101566]
[1750478989972,5.32458864,140.77,140.76,13.31101566]
[1750478990268,5.32458864,140.77,140.76,38.13791434]
[1750478990475,5.32458864,140.77,140.76,38.19791434]
[1750478993077,5.3151836,140.77,140.76,38.19791434]
[1750478993782,5.31521347,140.77,140.76,64.19791434]
[1750478994276,11.20948098,140.78,140.76,64.13791434]
[1750478994581,11.88948098,140.78,140.77,31.03362335]
[1750478994781,17.20198018,140.78,140.77,31.03362335]
[1750478994965,16.52198018,140.78,140.77,31.03362335]
[1750478996593,16.52198018,140.78,140.77,38.13740966]
[1750478997960,2.2018,140.81,140.77,55.95687545]
[1750478998161,2.2018,140.81,140.8,6.20672467]
[1750478998162,31.0418,140.81,140.8,6.20672467]
[1750478998960,0.68,140.81,140.8,6.20672467]
[1750478999161,0.68,140.81,140.77,49.75015078]
[1750478999162,0.68,140.82,140.77,85.26908237]
[1750478999482,29.52,140.82,140.81,6.20672467]
[1750478999780,29.52,140.82,140.81,13.30849301]
[1750478999966,0.68,140.82,140.81,13.30849301]
[1750479000161,29.52,140.82,140.81,13.30849301]
[1750479000379,18.64964886,140.83,140.81,31.06291386]
[1750479000380,0.68,140.83,140.81,31.06291386]
[1750479000682,28.84,140.83,140.82,6.20672467]
[1750479000882,16.07965683,140.84,140.82,6.20672467]
[1750479001078,44.91965683,140.84,140.83,6.20672467]
[1750479001260,44.23965683,140.84,140.83,6.20672467]
[1750479001457,44.91965683,140.84,140.83,6.20672467]
[1750479001675,16.07965683,140.84,140.83,6.20672467]
[1750479001866,15.39965683,140.84,140.83,38.13438313]
[1750479005005,0.68,140.86,140.83,55.88628258]
[1750479005171,0.68,140.86,140.85,6.20672467]
[1750479006398,19.32964886,140.86,140.85,13.30647617]
[1750479013200,19.32964886,140.86,140.85,7.0997515]
[1750479013492,19.32964886,140.86,140.85,13.30647617]
[1750479017875,19.32964886,140.86,140.83,6.20672467]
[1750479017876,18.64964886,140.84,140.83,6.20672467]
[1750479018072,48.15964886,140.84,140.83,6.20672467]
[1750479019480,47.46964886,140.84,140.82,6.20672467]
[1750479019792,19.33964886,140.83,140.82,13.30798869]
[1750479024408,18.64964886,140.83,140.82,6.20672467]
[1750479024592,19.33964886,140.83,140.82,6.20672467]
[1750479026919,19.33964886,140.83,140.82,13.30798869]
[1750479039217,19.33964886,140.83,140.82,7.10126402]
[1750479039422,19.33964886,140.83,140.82,13.30798869]
[1750479061625,22.00170334,140.83,140.82,13.30798869]
[1750479062547,0.74,140.81,140.79,24.85949947]
[1750479062840,29.52,140.81,140.8,6.20672467]
[1750479064460,28.78,140.81,140.8,13.30899739]
[1750479067954,29.52,140.81,140.8,13.30899739]
[1750479068447,29.52,140.81,140.8,7.10227272]
[1750479068633,29.66216157,140.81,140.8,7.10227272]
[1750479068953,32.32430921,140.81,140.8,7.10227272]
[1750479069554,18.64964886,140.8,140.79,13.30929425]
[1750479069853,22.0517965,140.8,140.79,13.30929425]
[1750479070533,21.3117965,140.8,140.78,7.10317477]
[1750479070846,50.97421174,140.79,140.78,6.20672467]
[1750479071043,19.38964886,140.78,140.77,13.31030314]
[1750479071226,22.05217332,140.78,140.77,7.10357847]
[1750479071427,22.05217332,140.78,140.77,13.31030314]
[1750479071646,19.38964886,140.78,140.77,13.31030314]
[1750479072724,19.53181043,140.78,140.77,13.31030314]
[1750479073854,22.18979298,140.78,140.77,13.31030314]
[1750479074156,19.53181043,140.78,140.77,13.31030314]
[1750479080074,19.53181043,140.78,140.77,6.20672467]
[1750479082347,19.53181043,140.78,140.77,13.31051098]
[1750479084566,19.53181043,140.78,140.77,12.81051098]
[1750479086452,19.53181043,140.78,140.77,5.70672467]
[1750479088763,19.53181043,140.78,140.77,12.81051098]
[1750479093542,18.64964886,140.78,140.77,12.81051098]
[1750479098958,47.40964886,140.78,140.77,12.81051098]
[1750479101178,47.40964886,140.78,140.77,7.10378631]
[1750479101349,48.14964886,140.78,140.77,13.31051098]
[1750479108386,48.29181043,140.78,140.77,13.31051098]
[1750479111786,48.14964886,140.78,140.77,13.31051098]
[1750479113187,47.40964886,140.78,140.77,13.31051098]
[1750479115585,28.76,140.78,140.77,38.19740966]
[1750479115801,28.76,140.79,140.77,38.19740966]
[1750479116094,28.76,140.79,140.78,6.20672467]
[1750479116095,18.64964886,140.79,140.78,6.20672467]
[1750479116276,47.40964886,140.79,140.78,6.20672467]
[1750479116597,47.40964886,140.79,140.78,13.31000638]
[1750479116992,18.64964886,140.79,140.78,13.31000638]
[1750479117177,47.40964886,140.79,140.78,13.31000638]
[1750479117374,6.97216157,140.81,140.78,31.12821067]
[1750479117375,18.64964886,140.81,140.78,31.12821067]
[1750479117696,18.64964886,140.81,140.8,6.20672467]
[1750479117896,47.40964886,140.81,140.8,6.20672467]
[1750479118798,47.40964886,140.81,140.8,13.30899739]
[1750479119205,48.15964886,140.81,140.8,13.30899739]
[1750479120606,47.38964886,140.81,140.8,13.30899739]
[1750479121267,20.97746085,140.82,140.8,13.30899739]
[1750479121470,39.62710971,140.82,140.81,6.20672467]
[1750479121699,68.36710971,140.82,140.81,6.20672467]
[1750479122303,68.36710971,140.82,140.81,13.30849301]
[1750479122883,69.11710971,140.82,140.81,13.30849301]
[1750479123502,40.37710971,140.82,140.81,13.30849301]
[1750479123687,69.11710971,140.82,140.81,13.30849301]
[1750479126212,69.25927128,140.82,140.8,7.10211167]
[1750479126380,19.54181043,140.81,140.8,13.30883634]
[1750479127200,22.19472876,140.81,140.8,13.30883634]
[1750479128194,21.44472876,140.81,140.79,7.10261882]
[1750479128383,29.49,140.8,140.79,7.10261882]
[1750479128585,29.49,140.8,140.79,13.30934349]
[1750479130309,29.49,140.8,140.76,26.0]
[1750479130310,18.64964886,140.77,140.76,26.0]
[1750479130501,48.13964886,140.77,140.76,32.20672467]
[1750479130702,48.13964886,140.77,140.76,6.20672467]
[1750479132794,48.13964886,140.77,140.76,13.31101566]
[1750479136425,47.38964886,140.77,140.76,13.31101566]
[1750479141826,0.14216157,140.81,140.76,13.31101566]
[1750479141999,18.64964886,140.79,140.76,7.16429099]
[1750479142318,19.38964886,140.79,140.78,6.20672467]
[1750479142903,18.64964886,140.79,140.78,6.20672467]
[1750479143821,19.38964886,140.79,140.78,6.20672467]
[1750479144918,19.38964886,140.79,140.78,13.31000638]
[1750479154732,48.10964886,140.79,140.78,13.31000638]
[1750479159012,48.25181043,140.79,140.78,13.31000638]
[1750479161212,49.15641043,140.79,140.77,13.31034466]
[1750479161433,0.74,140.78,140.77,13.31034466]
[1750479162914,18.64964886,140.77,140.74,24.86849155]
[1750479163120,48.10964886,140.77,140.76,32.20672467]
[1750479164642,48.10964886,140.77,140.76,39.31101566]
[1750479166250,34.28545769,140.82,140.76,39.31101566]
[1750479166251,18.64964886,140.81,140.76,57.13174313]
[1750479166461,18.64964886,140.79,140.76,50.92501846]
[1750479166622,18.64964886,140.79,140.78,6.20672467]
[1750479167644,0.75,140.81,140.78,31.06821067]
[1750479167859,47.36964886,140.8,140.78,24.861486]
[1750479168846,18.64964886,140.8,140.78,24.861486]
[1750479169045,47.36964886,140.8,140.79,13.30950185]
[1750479169255,47.36964886,140.8,140.79,7.10277718]
[1750479169450,47.36964886,140.8,140.79,13.30950185]
[1750479171037,48.11964886,140.8,140.79,13.30950185]
[1750479173223,19.39964886,140.8,140.79,13.30950185]
[1750479173553,48.11964886,140.8,140.79,13.30950185]
[1750479173733,19.39964886,140.8,140.79,13.30950185]
[1750479174050,48.11964886,140.8,140.79,13.30950185]
[1750479185861,19.54181043,140.79,140.78,6.20672467]
[1750479186047,0.75,140.78,140.77,13.31004302]
[1750479186247,29.45,140.78,140.77,13.31004302]
[1750479187848,29.45,140.78,140.77,6.20672467]
[1750479189262,29.45,140.78,140.77,13.31051098]
[1750479193970,19.39964886,140.77,140.74,24.86838192]
[1750479194268,28.7,140.76,140.74,24.86838192]
[1750479195392,28.7,140.76,140.75,13.3115204]
[1750479197844,28.7,140.76,140.75,13.3715204]
[1750479198777,47.34964886,140.77,140.75,13.3715204]
[1750479198948,47.34964886,140.77,140.76,6.20672467]
[1750479199155,48.07964886,140.77,140.76,6.20672467]
[1750479199856,47.34964886,140.77,140.76,13.31101566]
[1750479201360,48.07964886,140.77,140.76,13.31101566]
[1750479202666,47.34964886,140.77,140.76,13.31101566]
[1750479204860,48.07964886,140.77,140.76,13.31101566]
[1750479207961,47.34964886,140.77,140.76,13.31101566]
[1750479212899,48.07964886,140.77,140.76,13.31101566]
[1750479214297,47.34964886,140.77,140.76,13.31101566]
[1750479218183,48.07964886,140.77,140.76,13.31101566]
[1750479220719,47.34964886,140.77,140.76,13.31101566]
[1750479223508,48.07964886,140.77,140.76,13.31101566]
[1750479231210,0.74,140.76,140.75,6.20672467]
[1750479231413,18.64964886,140.75,140.73,7.10562442]
[1750479231594,19.53181043,140.75,140.74,6.20672467]
[1750479231921,48.21181043,140.75,140.74,6.20672467]
[1750479233217,48.21181043,140.75,140.74,13.31202522]
[1750479238922,18.79181043,140.77,140.74,13.31202522]
[1750479239090,29.58216157,140.76,140.74,7.10530055]
[1750479239290,48.23181043,140.76,140.75,6.20672467]
[1750479239593,48.21181043,140.76,140.75,6.20672467]
[1750479240001,48.21181043,140.76,140.75,13.3115204]
[1750479240490,48.06964886,140.76,140.75,13.3115204]
[1750479251501,18.64964886,140.75,140.71,24.87385402]
[1750479251818,0.74,140.73,140.71,24.87385402]
[1750479251990,19.38964886,140.73,140.71,7.10681543]
[1750479252194,48.06964886,140.72,140.71,7.10681543]
[1750479252800,48.06964886,140.72,140.71,13.3135401]
[1750479268136,48.06964886,140.72,140.71,7.10681543]
[1750479268436,48.06964886,140.72,140.71,13.3135401]
[1750479280539,18.64964886,140.71,140.7,7.10732054]
[1750479280742,19.33964886,140.71,140.7,13.31404521]
[1750479284140,19.33964886,140.71,140.7,7.10732054]
[1750479284347,19.33964886,140.71,140.7,13.31404521]
[1750479285042,19.33964886,140.71,140.7,7.10732054]
[1750479285222,19.33964886,140.71,140.7,13.31404521]
[1750479286843,19.48181043,140.71,140.7,13.31404521]
[1750479289843,19.53181043,140.71,140.7,6.20672467]
[1750479290549,19.53181043,140.71,140.68,7.10833096]
[1750479290751,19.38964886,140.69,140.68,7.10833096]
[1750479290949,18.64964886,140.67,140.65,24.88428202]
[1750479291250,18.64964886,140.67,140.66,6.20672467]
[1750479292053,18.64964886,140.67,140.66,13.31606634]
[1750479293554,18.64964886,140.67,140.65,24.88428202]
[1750479293750,18.64964886,140.67,140.66,6.20672467]
[1750479295359,18.64964886,140.67,140.66,13.31606634]
[1750479296151,19.38964886,140.67,140.66,13.31606634]
[1750479296536,18.64964886,140.67,140.66,13.31606634]
[1750479297437,18.64964886,140.67,140.66,6.20672467]
[1750479297638,19.38964886,140.67,140.66,6.20672467]
[1750479298858,18.64964886,140.67,140.66,6.20672467]
[1750479299364,18.64964886,140.67,140.66,13.31606634]
[1750479304153,18.64964886,140.67,140.66,7.10934167]
[1750479304356,18.64964886,140.67,140.66,13.31606634]
[1750479305766,0.14216157,140.7,140.66,31.08942052]
[1750479306061,47.32964886,140.69,140.66,24.88269585]
[1750479306269,48.06964886,140.69,140.68,6.20672467]
[1750479306453,19.38964886,140.69,140.68,6.20672467]
[1750479306769,48.06964886,140.69,140.68,6.20672467]
[1750479306975,19.38964886,140.69,140.68,13.31505563]
[1750479307164,48.06964886,140.69,140.68,13.31505563]
[1750479310073,48.06964886,140.69,140.66,17.77335418]
[1750479310253,19.38964886,140.69,140.68,6.20672467]
[1750479310465,48.06964886,140.69,140.68,6.20672467]
[1750479310659,19.38964886,140.69,140.68,6.20672467]
[1750479310861,48.06964886,140.69,140.68,6.20672467]
[1750479311374,19.38964886,140.69,140.68,6.20672467]
[1750479311674,48.06964886,140.69,140.68,6.20672467]
[1750479312358,48.06964886,140.69,140.68,13.31505563]
[1750479313058,19.38964886,140.69,140.68,13.31505563]
[1750479313365,48.06964886,140.69,140.68,13.31505563]
[1750479313567,19.38964886,140.69,140.68,13.31505563]
[1750479313773,48.06964886,140.69,140.68,13.31505563]
[1750479314370,18.64964886,140.67,140.65,7.10984713]
[1750479314545,19.39964886,140.67,140.66,6.20672467]
[1750479314748,48.07964886,140.67,140.66,6.20672467]
[1750479315569,48.07964886,140.67,140.66,13.31606634]
[1750479316776,19.39964886,140.67,140.66,13.31606634]
[1750479318164,18.64964886,140.67,140.66,13.31606634]
[1750479321365,19.39964886,140.67,140.66,13.31606634]
[1750479322175,19.39964886,140.67,140.66,7.10934167]
[1750479322360,19.39964886,140.67,140.66,6.20672467]
[1750479322561,19.39964886,140.67,140.65,7.10984713]
[1750479322881,19.39964886,140.67,140.66,6.20672467]
[1750479323557,19.39964886,140.67,140.66,13.31606634]
[1750479325787,18.64964886,140.67,140.66,13.31606634]
[1750479327490,18.64964886,140.67,140.66,6.20672467]
[1750479328583,18.64964886,140.67,140.66,13.31606634]
[1750479330785,19.39964886,140.67,140.66,13.31606634]
[1750479331791,18.64964886,140.67,140.66,13.31606634]
[1750479335885,29.43,140.68,140.66,13.31606634]
[1750479336095,29.43,140.68,140.67,6.20672467]
[1750479336096,47.32964886,140.68,140.67,6.20672467]
[1750479336592,48.07964886,140.68,140.67,6.20672467]
[1750479337192,19.39964886,140.68,140.67,13.31556095]
[1750479337688,7.9358,140.71,140.67,13.31556095]
[1750479337689,1.5211,140.71,140.67,57.08765165]
[1750479337900,18.64964886,140.71,140.7,6.20672467]
[1750479338070,19.39964886,140.71,140.7,6.20672467]
[1750479338873,19.39964886,140.71,140.7,13.31404521]
[1750479346112,0.74,140.72,140.7,13.31404521]
[1750479346281,18.64964886,140.71,140.7,13.31404521]
[1750479346599,19.38964886,140.71,140.7,13.31404521]
[1750479348678,19.38964886,140.71,140.7,6.20672467]
[1750479350102,19.38964886,140.71,140.7,13.31404521]
[1750479354604,19.38964886,140.71,140.7,7.10732054]
[1750479354802,19.38964886,140.71,140.7,13.31404521]
[1750479357501,1.6625,140.74,140.7,55.90924524]
[1750479357702,18.64964886,140.72,140.7,49.70252057]
[1750479357903,18.64964886,140.72,140.71,6.20672467]
[1750479358790,18.64964886,140.72,140.71,13.3135401]
[1750479359184,19.38964886,140.72,140.71,13.3135401]
[1750479359786,19.38964886,140.72,140.71,7.10681543]
[1750479359986,19.38964886,140.72,140.71,13.3135401]
[1750479360182,18.79181043,140.72,140.7,7.10716115]
[1750479360410,21.19741043,140.7,140.69,6.20672467]
[1750479360608,20.45741043,140.7,140.68,13.31505563]
[1750479360797,29.4,140.69,140.68,13.31505563]
[1750479361106,48.19181043,140.69,140.68,7.10833096]
[1750479361307,48.19181043,140.69,140.68,13.31505563]
[1750479362411,48.19181043,140.69,140.66,17.77320942]
[1750479362713,48.19181043,140.69,140.68,6.20672467]
[1750479364418,48.19181043,140.69,140.68,13.31505563]
[1750479382223,19.36964886,140.67,140.66,6.20672467]
[1750479382422,48.02964886,140.67,140.66,6.20672467]
[1750479382798,18.64964886,140.66,140.65,7.10984713]
[1750479382998,19.36964886,140.66,140.65,13.3165718]
[1750479383498,19.36964886,140.66,140.62,44.85488269]
[1750479383499,0.72,140.65,140.63,13.31758295]
[1750479383715,48.02964886,140.64,140.63,13.31758295]
[1750479396234,47.30964886,140.64,140.63,13.31758295]
[1750479397434,47.30964886,140.64,140.63,7.11085828]
[1750479397637,47.30964886,140.64,140.63,13.31758295]
[1750479399238,48.02964886,140.64,140.63,13.31758295]
[1750479408644,47.30964886,140.64,140.63,13.31758295]
[1750479408829,28.66,140.64,140.63,13.31758295]
[1750479409339,28.66,140.64,140.63,38.14448163]
[1750479410630,28.66,140.64,140.63,13.31758295]
[1750479411240,29.34,140.64,140.63,13.31758295]
[1750479411539,29.36,140.64,140.63,13.31758295]
[1750479412441,0.68,140.64,140.63,13.31758295]
[1750479412644,29.36,140.64,140.63,13.31758295]
[1750479415028,0.68,140.64,140.63,13.31758295]
[1750479415347,29.36,140.64,140.63,13.31758295]
[1750479415844,48.00964886,140.64,140.63,13.31758295]
[1750479422136,47.32964886,140.64,140.63,13.31758295]
[1750479425559,48.00964886,140.64,140.63,13.31758295]
[1750479429063,47.32964886,140.64,140.63,13.31758295]
[1750479432242,2.2771,140.66,140.63,55.92162733]
[1750479432560,47.32964886,140.66,140.65,6.20672467]
[1750479433058,48.00964886,140.66,140.65,6.20672467]
[1750479434354,48.00964886,140.66,140.65,13.3165718]
[1750479434554,19.32964886,140.66,140.65,13.3165718]
[1750479434744,48.00964886,140.66,140.65,13.3165718]
[1750479435967,47.32964886,140.66,140.65,13.3165718]
[1750479439575,19.38964886,140.66,140.65,13.3165718]
[1750479439757,48.04964886,140.66,140.65,13.3165718]
[1750479441668,19.38964886,140.66,140.65,13.3165718]
[1750479441874,48.04964886,140.66,140.65,13.3165718]
[1750479442451,19.38964886,140.66,140.65,13.3165718]
[1750479442676,48.04964886,140.66,140.65,13.3165718]
[1750479444471,18.64964886,140.68,140.65,31.09118964]
[1750479444676,28.66,140.67,140.65,24.88446497]
[1750479445686,28.66,140.67,140.65,17.77461784]
[1750479445852,47.30964886,140.67,140.66,6.20672467]
[1750479446058,28.66,140.67,140.66,6.20672467]
[1750479446275,29.4,140.68,140.66,6.20672467]
[1750479446556,48.04964886,140.68,140.67,6.20672467]
[1750479447283,19.38964886,140.68,140.67,13.31556095]
[1750479447488,48.04964886,140.68,140.67,13.31556095]
[1750479461393,19.38964886,140.66,140.65,17.77461784]
[1750479461583,48.04964886,140.66,140.65,23.98134251]
[1750479462496,19.38964886,140.65,140.64,7.11035267]
[1750479462677,19.38964886,140.65,140.64,13.31707734]
[1750479465200,19.38964886,140.65,140.64,7.11035267]
[1750479465394,19.38964886,140.65,140.64,13.31707734]
[1750479466092,19.38964886,140.65,140.64,7.11035267]
[1750479466292,19.53181043,140.65,140.64,7.11035267]
[1750479470515,19.53181043,140.65,140.64,6.20672467]
[1750479495702,18.79181043,140.65,140.63,7.11085828]
[1750479495902,47.99964886,140.64,140.63,7.11085828]
[1750479497026,47.99964886,140.64,140.63,13.31758295]
[1750479498314,47.99964886,140.64,140.63,7.11085828]
[1750479498506,47.99964886,140.64,140.63,13.31758295]
[1750479501238,47.99964886,140.64,140.63,7.11085828]
[1750479501439,47.99964886,140.64,140.63,13.31758295]
[1750479531971,47.99964886,140.64,140.63,7.11085828]
[1750479532167,47.99964886,140.64,140.63,13.31758295]
[1750479541881,47.30964886,140.64,140.63,13.31758295]
[1750479542073,47.99964886,140.64,140.63,13.31758295]
[1750479549990,47.30964886,140.64,140.63,13.31758295]
[1750479551578,47.99964886,140.64,140.63,13.31758295]
[1750479579905,48.14181043,140.64,140.63,7.11085828]
[1750479580210,48.14181043,140.64,140.63,13.31758295]
[1750479580609,47.99964886,140.64,140.63,13.31758295]
[1750479591619,8.8303,140.66,140.63,31.09472865]
[1750479591823,18.64964886,140.66,140.65,6.20672467]
[1750479592120,48.00964886,140.66,140.65,6.20672467]
[1750479595214,48.00964886,140.66,140.65,13.3165718]
[1750479597527,19.36964886,140.66,140.65,13.3165718]
[1750479597734,47.98964886,140.66,140.65,13.3165718]
[1750479598226,19.36964886,140.66,140.65,13.3165718]
[1750479598432,47.98964886,140.66,140.65,13.3165718]
[1750479598823,47.26964886,140.66,140.65,13.3165718]
[1750479599033,18.64964886,140.66,140.65,13.3165718]
[1750479599201,47.26964886,140.66,140.65,13.3165718]
[1750479600501,28.62,140.66,140.65,31.09118964]
[1750479601220,26.3758575,140.68,140.65,31.15118964]
[1750479601400,45.02550636,140.68,140.67,6.20672467]
[1750479601598,26.3758575,140.68,140.67,6.20672467]
[1750479601848,26.3758575,140.68,140.67,6.26672467]
[1750479602004,26.3758575,140.68,140.67,13.37556095]
[1750479602831,18.64964886,140.71,140.67,31.08765165]
[1750479603016,8.6279,140.73,140.7,6.20672467]
[1750479603017,19.36964886,140.72,140.7,6.20672467]
[1750479603335,47.26964886,140.71,140.7,6.20672467]
[1750479604128,47.26964886,140.71,140.7,13.31404521]
[1750479604314,18.64964886,140.71,140.7,13.31404521]
[1750479604517,47.26964886,140.71,140.7,13.31404521]
[1750479604912,18.64964886,140.71,140.7,13.31404521]
[1750479605116,47.26964886,140.71,140.7,13.31404521]
[1750479607706,19.36964886,140.72,140.7,13.31404521]
[1750479607911,2.3079,140.73,140.7,31.08234656]
[1750479608111,28.62,140.72,140.7,31.08234656]
[1750479609429,29.34,140.73,140.7,31.08234656]
[1750479609626,28.62,140.73,140.7,31.08234656]
[1750479609835,0.72,140.72,140.7,31.08234656]
[1750479612441,18.64964886,140.74,140.7,31.08234656]
[1750479612654,0.72,140.74,140.73,6.20672467]
[1750479612821,47.98964886,140.74,140.73,6.20672467]
[1750479613748,19.36964886,140.74,140.73,13.31253011]
[1750479613930,47.98964886,140.74,140.73,13.31253011]
[1750479616031,47.26964886,140.74,140.73,13.31253011]
[1750479616347,47.94964886,140.74,140.73,13.31253011]
[1750479616749,47.94964886,140.74,140.73,7.10580544]
[1750479617054,47.94964886,140.74,140.73,13.31253011]
[1750479617237,47.44964886,140.74,140.73,13.31253011]
[1750479618451,46.94964886,140.74,140.73,13.31253011]
[1750479619638,46.44964886,140.74,140.73,13.31253011]
[1750479623438,46.59181043,140.74,140.73,6.20672467]
[1750479623655,0.68,140.72,140.68,172.2]
[1750479623858,28.6,140.71,140.68,26.0]
[1750479624055,28.6,140.7,140.68,26.0]
[1750479624561,28.6,140.7,140.69,7.10782571]
[1750479624935,28.6,140.7,140.69,13.31455038]
[1750479626358,29.28,140.7,140.69,13.31455038]
[1750479627540,28.6,140.7,140.69,13.31455038]
[1750479628045,28.6,140.7,140.69,38.20144906]
[1750479628251,28.62,140.72,140.7,0.06]
[1750479628563,19.32964886,140.75,140.71,6.26672467]
[1750479628779,28.64,140.74,140.71,0.06]
[1750479628939,19.32964886,140.75,140.71,0.06]
[1750479629138,28.66,140.74,140.71,0.06]
[1750479629343,19.32964886,140.75,140.71,0.06]
[1750479629545,28.72,140.74,140.71,0.06]
[1750479629962,28.72,140.74,140.73,13.31253011]
[1750479631465,28.72,140.74,140.71,17.82677214]
[1750479632158,19.32964886,140.75,140.71,17.82677214]
[1750479632361,28.72,140.74,140.71,17.82677214]
[1750479633566,29.4,140.74,140.71,24.93358757]
[1750479634347,29.4,140.74,140.73,6.20672467]
[1750479635769,29.4,140.74,140.73,13.31253011]
[1750479640866,48.04964886,140.74,140.73,7.10580544]
[1750479641164,19.32964886,140.71,140.7,6.20672467]
[1750479641361,49.56864886,140.71,140.7,6.20672467]
[1750479643372,49.56864886,140.71,140.7,13.31404521]
[1750479651876,28.7,140.71,140.7,13.31404521]
[1750479652287,0.7,140.72,140.7,13.31404521]